[Event "Titled Tuesday Blitz November 14 Early 2023"]
[White "topce"]
[Black "Korchmar, Vasiliy"]
[BlackFideId "24131750"]
[WhiteElo "2503"]
[BlackElo "2765"]
[Result "1-0"]
[Round "2"]
[TimeControl "180+1"]
[Date "2023.11.14"]
[WhiteClock "0:00:19"]
[BlackClock "0:00:00"]
[Board "82"]

1. c4 {[%clk 0:03:00]}  e6 {[%clk 0:02:59]} 2. Nf3 {[%clk 0:02:58]}  d5 {[%clk 0:03:00]} 3. g3 {[%clk 0:02:59]}  Nf6 {[%clk 0:03:00]} 4. Bg2 {[%clk 0:02:59]}  d4 {[%clk 0:02:59]} 5. O-O {[%clk 0:02:58]}  c5 {[%clk 0:02:59]} 6. d3 {[%clk 0:02:53]}  Nc6 {[%clk 0:02:56]} 7. e3 {[%clk 0:02:54]}  h6 {[%clk 0:02:52]} 8. Na3 {[%clk 0:02:53]}  e5 {[%clk 0:02:43]} 9. Nc2 {[%clk 0:02:47]}  Bd6 {[%clk 0:02:36]} 10. exd4 {[%clk 0:02:35]}  exd4 {[%clk 0:02:37]} 11. Re1+ {[%clk 0:02:35]}  Be6 {[%clk 0:02:37]} 12. Bh3 {[%clk 0:02:33]}  O-O {[%clk 0:02:35]} 13. Rxe6 {[%clk 0:02:31]}  fxe6 {[%clk 0:02:36]} 14. Bxe6+ {[%clk 0:02:31]}  Kh8 {[%clk 0:02:35]} 15. Nce1 {[%clk 0:02:29]}  Qe8 {[%clk 0:02:28]} 16. Bh3 {[%clk 0:02:26]}  Qh5 {[%clk 0:02:28]} 17. Bg2 {[%clk 0:02:26]}  Ne5 {[%clk 0:02:15]} 18. Bf4 {[%clk 0:02:16]}  Nf7 {[%clk 0:01:37]} 19. Nh4 {[%clk 0:01:51]}  Qxd1 {[%clk 0:01:23]} 20. Ng6+ {[%clk 0:01:41]}  Kg8 {[%clk 0:01:23]} 21. Rxd1 {[%clk 0:01:38]}  Rfe8 {[%clk 0:01:17]} 22. Bxb7 {[%clk 0:01:31]}  Rab8 {[%clk 0:01:16]} 23. Bc6 {[%clk 0:01:20]}  Re2 {[%clk 0:01:16]} 24. Bc1 {[%clk 0:01:12]}  Ng5 {[%clk 0:00:48]} 25. Nf4 {[%clk 0:01:01]}  Bxf4 {[%clk 0:00:40]} 26. gxf4 {[%clk 0:00:53]}  Nh3+ {[%clk 0:00:37]} 27. Kg2 {[%clk 0:00:51]}  Nxf2 {[%clk 0:00:37]} 28. Kf3 {[%clk 0:00:49]}  Rxe1 {[%clk 0:00:16]} 29. Rxe1 {[%clk 0:00:48]}  Nxd3 {[%clk 0:00:16]} 30. Rd1 {[%clk 0:00:45]}  Nxc1 {[%clk 0:00:16]} 31. Rxc1 {[%clk 0:00:45]}  Rxb2 {[%clk 0:00:17]} 32. Re1 {[%clk 0:00:42]}  Rxa2 {[%clk 0:00:10]} 33. Re7 {[%clk 0:00:41]}  a5 {[%clk 0:00:10]} 34. Bd5+ {[%clk 0:00:38]}  Kh7 {[%clk 0:00:07]} 35. Bf7 {[%clk 0:00:38]}  a4 {[%clk 0:00:03]} 36. f5 {[%clk 0:00:38]}  h5 {[%clk 0:00:02]} 37. Bg6+ {[%clk 0:00:38]}  Kh6 {[%clk 0:00:02]} 38. h4 {[%clk 0:00:39]}  Ra3+ {[%clk 0:00:02]} 39. Kf4 {[%clk 0:00:38]}  Ra1 {[%clk 0:00:02]} 40. Ra7 {[%clk 0:00:38]}  Rf1+ {[%clk 0:00:02]} 41. Kg3 {[%clk 0:00:38]}  Ne4+ {[%clk 0:00:01]} 42. Kg2 {[%clk 0:00:37]}  Rf4 {[%clk 0:00:01]} 43. Kh3 {[%clk 0:00:35]}  Rf3+ {[%clk 0:00:01]} 44. Kg2 {[%clk 0:00:35]}  Rg3+ {[%clk 0:00:02]} 45. Kh2 {[%clk 0:00:35]}  Rg4 {[%clk 0:00:02]} 46. Kh3 {[%clk 0:00:35]}  Rg3+ {[%clk 0:00:02]} 47. Kh2 {[%clk 0:00:35]}  a3 {[%clk 0:00:03]} 48. Ra8 {[%clk 0:00:35]}  Rxg6 {[%clk 0:00:03]} 49. fxg6 {[%clk 0:00:35]}  Kxg6 {[%clk 0:00:03]} 50. Rxa3 {[%clk 0:00:36]}  Nc3 {[%clk 0:00:03]} 51. Kg3 {[%clk 0:00:34]}  Kf5 {[%clk 0:00:04]} 52. Kf3 {[%clk 0:00:34]}  g5 {[%clk 0:00:04]} 53. hxg5 {[%clk 0:00:34]}  Kxg5 {[%clk 0:00:05]} 54. Ra5 {[%clk 0:00:34]}  d3 {[%clk 0:00:04]} 55. Rxc5+ {[%clk 0:00:35]}  Kf6 {[%clk 0:00:05]} 56. Ke3 {[%clk 0:00:34]}  d2 {[%clk 0:00:05]} 57. Rc6+ {[%clk 0:00:33]}  Ke7 {[%clk 0:00:06]} 58. Kxd2 {[%clk 0:00:34]}  Ne4+ {[%clk 0:00:05]} 59. Ke3 {[%clk 0:00:33]}  Nd6 {[%clk 0:00:06]} 60. Kd4 {[%clk 0:00:29]}  h4 {[%clk 0:00:06]} 61. Rc7+ {[%clk 0:00:29]}  Kf6 {[%clk 0:00:04]} 62. Rh7 {[%clk 0:00:30]}  Kg6 {[%clk 0:00:03]} 63. Rh8 {[%clk 0:00:30]}  Kg7 {[%clk 0:00:03]} 64. Rd8 {[%clk 0:00:28]}  h3 {[%clk 0:00:02]} 65. Rd7+ {[%clk 0:00:26]}  Nf7 {[%clk 0:00:02]} 66. Ke3 {[%clk 0:00:22]}  h2 {[%clk 0:00:02]} 67. Rd1 {[%clk 0:00:21]}  Ne5 {[%clk 0:00:03]} 68. c5 {[%clk 0:00:20]}  Kf6 {[%clk 0:00:01]} 69. Kf4 {[%clk 0:00:21]}  Nd3+ {[%clk 0:00:01]} 70. Kg3 {[%clk 0:00:20]}  Nxc5 {[%clk 0:00:00]} 71. Kxh2 {[%clk 0:00:19]} 1-0


[Site "https://www.chess.com"]

[Event "Titled Tuesday Blitz November 14 Early 2023"]
[White "Kovalevsky, Stanislav"]
[Black "Nigmatov, Ortik"]
[WhiteFideId "13508598"]
[BlackFideId "14202131"]
[WhiteElo "2491"]
[BlackElo "2763"]
[Result "0-1"]
[Round "2"]
[TimeControl "180+1"]
[Date "2023.11.14"]
[WhiteClock "0:00:14"]
[BlackClock "0:00:19"]
[Board "84"]

1. e4 {[%clk 0:03:00]}  c5 {[%clk 0:02:59]} 2. c3 {[%clk 0:03:00]}  d5 {[%clk 0:02:58]} 3. exd5 {[%clk 0:03:01]}  Qxd5 {[%clk 0:02:59]} 4. Nf3 {[%clk 0:03:01]}  Nf6 {[%clk 0:02:59]} 5. d4 {[%clk 0:03:01]}  Nc6 {[%clk 0:03:00]} 6. Be3 {[%clk 0:03:01]}  cxd4 {[%clk 0:03:00]} 7. cxd4 {[%clk 0:03:01]}  e6 {[%clk 0:03:00]} 8. Nc3 {[%clk 0:03:01]}  Qd6 {[%clk 0:03:00]} 9. a3 {[%clk 0:02:57]}  Be7 {[%clk 0:03:00]} 10. Bd3 {[%clk 0:02:56]}  O-O {[%clk 0:02:59]} 11. O-O {[%clk 0:02:55]}  a6 {[%clk 0:02:59]} 12. Qe2 {[%clk 0:02:49]}  b5 {[%clk 0:02:58]} 13. Ne4 {[%clk 0:02:48]}  Nxe4 {[%clk 0:02:57]} 14. Bxe4 {[%clk 0:02:49]}  Bb7 {[%clk 0:02:56]} 15. Rfd1 {[%clk 0:02:45]}  Na5 {[%clk 0:02:36]} 16. d5 {[%clk 0:02:12]}  exd5 {[%clk 0:02:32]} 17. b4 {[%clk 0:02:11]}  Qe6 {[%clk 0:00:55]} 18. Bxh7+ {[%clk 0:01:21]}  Kxh7 {[%clk 0:00:56]} 19. bxa5 {[%clk 0:01:22]}  Qg6 {[%clk 0:00:53]} 20. Rd4 {[%clk 0:01:09]}  Bf6 {[%clk 0:00:51]} 21. Rg4 {[%clk 0:01:09]}  Qxg4 {[%clk 0:00:39]} 22. Ng5+ {[%clk 0:01:08]}  Qxg5 {[%clk 0:00:38]} 23. Bxg5 {[%clk 0:01:07]}  Bxa1 {[%clk 0:00:37]} 24. Qe7 {[%clk 0:00:59]}  Rfe8 {[%clk 0:00:32]} 25. Qb4 {[%clk 0:00:50]}  d4 {[%clk 0:00:32]} 26. h3 {[%clk 0:00:46]}  Bc3 {[%clk 0:00:30]} 27. Qb3 {[%clk 0:00:35]}  Kg8 {[%clk 0:00:28]} 28. g4 {[%clk 0:00:32]}  Re2 {[%clk 0:00:24]} 29. Bh4 {[%clk 0:00:27]}  Rae8 {[%clk 0:00:23]} 30. g5 {[%clk 0:00:26]}  Rb2 {[%clk 0:00:19]} 31. Qd1 {[%clk 0:00:14]}  Re1+ {[%clk 0:00:19]} 0-1


[Site "https://www.chess.com"]

[Event "Titled Tuesday Blitz November 14 Early 2023"]
[White "Javakhadze, Zurab"]
[Black "MFatigue"]
[WhiteFideId "13603647"]
[WhiteElo "2763"]
[BlackElo "2484"]
[Result "1-0"]
[Round "2"]
[TimeControl "180+1"]
[Date "2023.11.14"]
[WhiteClock "0:00:05"]
[BlackClock "0:00:00"]
[Board "85"]

1. Nf3 {[%clk 0:03:00]}  d5 {[%clk 0:02:59]} 2. g3 {[%clk 0:03:01]}  g6 {[%clk 0:02:57]} 3. Bg2 {[%clk 0:03:01]}  Bg7 {[%clk 0:02:58]} 4. O-O {[%clk 0:02:58]}  Nf6 {[%clk 0:02:56]} 5. c4 {[%clk 0:02:58]}  c6 {[%clk 0:02:51]} 6. d4 {[%clk 0:02:57]}  O-O {[%clk 0:02:51]} 7. a4 {[%clk 0:02:57]}  Bg4 {[%clk 0:02:41]} 8. Nc3 {[%clk 0:02:40]}  Ne4 {[%clk 0:02:29]} 9. Qb3 {[%clk 0:02:20]}  b6 {[%clk 0:01:42]} 10. Rd1 {[%clk 0:01:45]}  e6 {[%clk 0:01:30]} 11. h3 {[%clk 0:01:39]}  Bxf3 {[%clk 0:01:29]} 12. Bxf3 {[%clk 0:01:39]}  f5 {[%clk 0:01:18]} 13. cxd5 {[%clk 0:01:38]}  cxd5 {[%clk 0:01:18]} 14. Be3 {[%clk 0:00:55]}  Nc6 {[%clk 0:01:16]} 15. Rac1 {[%clk 0:00:55]}  Rc8 {[%clk 0:01:15]} 16. Qb5 {[%clk 0:00:53]}  Na5 {[%clk 0:01:08]} 17. Bxe4 {[%clk 0:00:45]}  fxe4 {[%clk 0:01:05]} 18. b3 {[%clk 0:00:37]}  Qe7 {[%clk 0:00:50]} 19. Bf4 {[%clk 0:00:21]}  g5 {[%clk 0:00:50]} 20. Be3 {[%clk 0:00:16]}  h6 {[%clk 0:00:46]} 21. Nb1 {[%clk 0:00:13]}  Qd6 {[%clk 0:00:31]} 22. Kg2 {[%clk 0:00:07]}  Kh7 {[%clk 0:00:29]} 23. Nd2 {[%clk 0:00:06]}  Rxc1 {[%clk 0:00:14]} 24. Rxc1 {[%clk 0:00:06]}  e5 {[%clk 0:00:15]} 25. dxe5 {[%clk 0:00:04]}  Qxe5 {[%clk 0:00:16]} 26. b4 {[%clk 0:00:03]}  d4 {[%clk 0:00:10]} 27. Qxe5 {[%clk 0:00:03]}  Bxe5 {[%clk 0:00:10]} 28. bxa5 {[%clk 0:00:03]}  dxe3 {[%clk 0:00:10]} 29. fxe3 {[%clk 0:00:02]}  bxa5 {[%clk 0:00:10]} 30. Nxe4 {[%clk 0:00:03]}  Rb8 {[%clk 0:00:05]} 31. Rc5 {[%clk 0:00:03]}  Bg7 {[%clk 0:00:04]} 32. Rxa5 {[%clk 0:00:03]}  Rb7 {[%clk 0:00:04]} 33. Nd6 {[%clk 0:00:04]}  Rd7 {[%clk 0:00:04]} 34. Nf5 {[%clk 0:00:04]}  Bf8 {[%clk 0:00:04]} 35. Kf3 {[%clk 0:00:05]}  Kg6 {[%clk 0:00:04]} 36. e4 {[%clk 0:00:05]}  h5 {[%clk 0:00:05]} 37. Ra6+ {[%clk 0:00:06]}  Kh7 {[%clk 0:00:03]} 38. e5 {[%clk 0:00:05]}  Rd8 {[%clk 0:00:02]} 39. e6 {[%clk 0:00:05]}  Re8 {[%clk 0:00:02]} 40. e7 {[%clk 0:00:05]}  Bxe7 {[%clk 0:00:01]} 41. Rxa7 {[%clk 0:00:05]}  Kg6 {[%clk 0:00:02]} 42. Rxe7 {[%clk 0:00:04]}  Rf8 {[%clk 0:00:00]} 43. g4 {[%clk 0:00:05]} 1-0


[Site "https://www.chess.com"]

[Event "Titled Tuesday Blitz November 14 Early 2023"]
[White "Saydaliev, Saidakbar"]
[Black "Shishkov, Andrei"]
[WhiteFideId "14203693"]
[BlackFideId "4500563"]
[WhiteElo "2755"]
[BlackElo "2481"]
[Result "1-0"]
[Round "2"]
[TimeControl "180+1"]
[Date "2023.11.14"]
[WhiteClock "0:00:17"]
[BlackClock "0:00:00"]
[Board "86"]

1. Nf3 {[%clk 0:03:00]}  Nf6 {[%clk 0:02:58]} 2. c4 {[%clk 0:02:59]}  e6 {[%clk 0:02:58]} 3. e3 {[%clk 0:02:56]}  d5 {[%clk 0:02:58]} 4. Nc3 {[%clk 0:02:57]}  Be7 {[%clk 0:02:57]} 5. d4 {[%clk 0:02:51]}  O-O {[%clk 0:02:57]} 6. a3 {[%clk 0:02:51]}  a6 {[%clk 0:02:52]} 7. b4 {[%clk 0:02:45]}  a5 {[%clk 0:02:45]} 8. b5 {[%clk 0:02:37]}  c5 {[%clk 0:02:33]} 9. bxc6 {[%clk 0:02:31]}  Nxc6 {[%clk 0:02:29]} 10. Rb1 {[%clk 0:02:23]}  b6 {[%clk 0:02:08]} 11. cxd5 {[%clk 0:01:50]}  Nxd5 {[%clk 0:02:08]} 12. Nxd5 {[%clk 0:01:50]}  exd5 {[%clk 0:02:01]} 13. Bd3 {[%clk 0:01:40]}  Bg4 {[%clk 0:01:56]} 14. Qc2 {[%clk 0:01:32]}  Rc8 {[%clk 0:01:37]} 15. Bxh7+ {[%clk 0:01:30]}  Kh8 {[%clk 0:01:38]} 16. Bf5 {[%clk 0:01:31]}  Nxd4 {[%clk 0:01:34]} 17. Qxc8 {[%clk 0:01:31]}  Nxf3+ {[%clk 0:00:52]} 18. gxf3 {[%clk 0:01:20]}  Qxc8 {[%clk 0:00:52]} 19. Bxc8 {[%clk 0:01:21]}  Bxf3 {[%clk 0:00:53]} 20. Bf5 {[%clk 0:01:10]}  Bxh1 {[%clk 0:00:51]} 21. Rxb6 {[%clk 0:01:09]}  Bf3 {[%clk 0:00:27]} 22. Bb2 {[%clk 0:01:06]}  Kg8 {[%clk 0:00:18]} 23. Kd2 {[%clk 0:00:51]}  g6 {[%clk 0:00:16]} 24. Bd3 {[%clk 0:00:47]}  Bd8 {[%clk 0:00:15]} 25. Ra6 {[%clk 0:00:42]}  Bc7 {[%clk 0:00:15]} 26. h4 {[%clk 0:00:40]}  Rb8 {[%clk 0:00:14]} 27. Bc3 {[%clk 0:00:36]}  Be4 {[%clk 0:00:14]} 28. Bxe4 {[%clk 0:00:27]}  dxe4 {[%clk 0:00:15]} 29. h5 {[%clk 0:00:28]}  gxh5 {[%clk 0:00:14]} 30. Rh6 {[%clk 0:00:28]}  Kf8 {[%clk 0:00:14]} 31. Rxh5 {[%clk 0:00:25]}  Ke7 {[%clk 0:00:14]} 32. Rc5 {[%clk 0:00:23]}  Bd6 {[%clk 0:00:13]} 33. Rxa5 {[%clk 0:00:23]}  Rb3 {[%clk 0:00:13]} 34. a4 {[%clk 0:00:22]}  Ra3 {[%clk 0:00:13]} 35. Ra7+ {[%clk 0:00:17]}  Ke6 {[%clk 0:00:13]} 36. Ra6 {[%clk 0:00:16]}  Ra2+ {[%clk 0:00:13]} 37. Ke1 {[%clk 0:00:16]}  Kd5 {[%clk 0:00:13]} 38. a5 {[%clk 0:00:15]}  Bc5 {[%clk 0:00:12]} 39. Rf6 {[%clk 0:00:14]}  Kc4 {[%clk 0:00:12]} 40. Be5 {[%clk 0:00:09]}  Kd3 {[%clk 0:00:13]} 41. Kf1 {[%clk 0:00:09]}  Rxa5 {[%clk 0:00:08]} 42. Rxf7 {[%clk 0:00:10]}  Ra2 {[%clk 0:00:07]} 43. Rd7+ {[%clk 0:00:09]}  Kc4 {[%clk 0:00:07]} 44. Bd4 {[%clk 0:00:10]}  Rd2 {[%clk 0:00:06]} 45. Rc7 {[%clk 0:00:09]}  Rxd4 {[%clk 0:00:05]} 46. exd4 {[%clk 0:00:09]}  Kxd4 {[%clk 0:00:06]} 47. Ke2 {[%clk 0:00:09]}  Bd6 {[%clk 0:00:06]} 48. Rc6 {[%clk 0:00:08]}  Kd5 {[%clk 0:00:06]} 49. Ra6 {[%clk 0:00:09]}  Bc5 {[%clk 0:00:05]} 50. Ra4 {[%clk 0:00:09]}  Ke5 {[%clk 0:00:05]} 51. Ra5 {[%clk 0:00:10]}  Kd4 {[%clk 0:00:06]} 52. Ra8 {[%clk 0:00:10]}  Ke5 {[%clk 0:00:05]} 53. Re8+ {[%clk 0:00:10]}  Kf4 {[%clk 0:00:05]} 54. Kf1 {[%clk 0:00:11]}  Bd4 {[%clk 0:00:05]} 55. Kg2 {[%clk 0:00:11]}  Bc5 {[%clk 0:00:04]} 56. Re6 {[%clk 0:00:10]}  Bd4 {[%clk 0:00:04]} 57. Rc6 {[%clk 0:00:11]}  Ba7 {[%clk 0:00:04]} 58. Rc4 {[%clk 0:00:10]}  Bb6 {[%clk 0:00:04]} 59. f3 {[%clk 0:00:10]}  Kf5 {[%clk 0:00:03]} 60. Rxe4 {[%clk 0:00:10]}  Bc7 {[%clk 0:00:04]} 61. Rc4 {[%clk 0:00:10]}  Bf4 {[%clk 0:00:04]} 62. Kf2 {[%clk 0:00:11]}  Be5 {[%clk 0:00:04]} 63. Ke3 {[%clk 0:00:11]}  Bf6 {[%clk 0:00:05]} 64. Rc5+ {[%clk 0:00:12]}  Ke6 {[%clk 0:00:05]} 65. Ke4 {[%clk 0:00:12]}  Be7 {[%clk 0:00:05]} 66. Rb5 {[%clk 0:00:12]}  Bd6 {[%clk 0:00:04]} 67. f4 {[%clk 0:00:13]}  Ke7 {[%clk 0:00:05]} 68. Rb6 {[%clk 0:00:13]}  Bc5 {[%clk 0:00:04]} 69. Ra6 {[%clk 0:00:13]}  Bb4 {[%clk 0:00:05]} 70. Kf5 {[%clk 0:00:14]}  Bd2 {[%clk 0:00:04]} 71. Ra7+ {[%clk 0:00:14]}  Kd6 {[%clk 0:00:04]} 72. Rf7 {[%clk 0:00:14]}  Bc1 {[%clk 0:00:03]} 73. Kg6 {[%clk 0:00:15]}  Ke6 {[%clk 0:00:02]} 74. f5+ {[%clk 0:00:16]}  Ke5 {[%clk 0:00:03]} 75. Re7+ {[%clk 0:00:16]}  Kd6 {[%clk 0:00:03]} 76. Re1 {[%clk 0:00:17]}  Bf4 {[%clk 0:00:00]} 77. f6 {[%clk 0:00:17]} 1-0


[Site "https://www.chess.com"]

[Event "Titled Tuesday Blitz November 14 Early 2023"]
[White "WindWhistler11"]
[Black "Hambleton, Aman"]
[BlackFideId "2606577"]
[WhiteElo "2448"]
[BlackElo "2754"]
[Result "1-0"]
[Round "2"]
[TimeControl "180+1"]
[Date "2023.11.14"]
[WhiteClock "0:00:09"]
[BlackClock "0:00:01"]
[Board "87"]

1. c4 {[%clk 0:03:00]}  c5 {[%clk 0:02:57]} 2. e3 {[%clk 0:03:00]}  b6 {[%clk 0:02:52]} 3. Nf3 {[%clk 0:02:53]}  Bb7 {[%clk 0:02:51]} 4. b3 {[%clk 0:02:54]}  e6 {[%clk 0:02:50]} 5. Bb2 {[%clk 0:02:54]}  Nf6 {[%clk 0:02:50]} 6. Be2 {[%clk 0:02:55]}  Be7 {[%clk 0:02:48]} 7. O-O {[%clk 0:02:52]}  O-O {[%clk 0:02:48]} 8. d3 {[%clk 0:02:50]}  d6 {[%clk 0:02:46]} 9. Nbd2 {[%clk 0:02:50]}  Nbd7 {[%clk 0:02:44]} 10. Qc2 {[%clk 0:02:50]}  a6 {[%clk 0:02:44]} 11. a3 {[%clk 0:02:50]}  b5 {[%clk 0:02:43]} 12. Rfe1 {[%clk 0:02:50]}  Qb6 {[%clk 0:02:42]} 13. Rab1 {[%clk 0:02:50]}  Rfc8 {[%clk 0:02:40]} 14. Ba1 {[%clk 0:02:44]}  h6 {[%clk 0:02:38]} 15. Nf1 {[%clk 0:02:43]}  Rab8 {[%clk 0:02:36]} 16. Ng3 {[%clk 0:02:43]}  Bc6 {[%clk 0:02:28]} 17. h3 {[%clk 0:02:41]}  Qb7 {[%clk 0:02:08]} 18. Bf1 {[%clk 0:02:20]}  Qa8 {[%clk 0:01:33]} 19. Nh2 {[%clk 0:02:19]}  d5 {[%clk 0:01:27]} 20. e4 {[%clk 0:01:48]}  bxc4 {[%clk 0:01:02]} 21. bxc4 {[%clk 0:01:39]}  Rxb1 {[%clk 0:01:02]} 22. Qxb1 {[%clk 0:01:38]}  d4 {[%clk 0:00:49]} 23. e5 {[%clk 0:01:36]}  Ne8 {[%clk 0:00:32]} 24. Qd1 {[%clk 0:01:33]}  Qb7 {[%clk 0:00:22]} 25. Qg4 {[%clk 0:01:17]}  Qb3 {[%clk 0:00:18]} 26. f4 {[%clk 0:01:14]}  Kh8 {[%clk 0:00:03]} 27. f5 {[%clk 0:01:14]}  exf5 {[%clk 0:00:03]} 28. Nxf5 {[%clk 0:01:14]}  Bf8 {[%clk 0:00:03]} 29. Nh4 {[%clk 0:00:50]}  Nc7 {[%clk 0:00:03]} 30. Qf5 {[%clk 0:00:46]}  Kg8 {[%clk 0:00:03]} 31. Be2 {[%clk 0:00:31]}  Re8 {[%clk 0:00:03]} 32. Bh5 {[%clk 0:00:31]}  Re7 {[%clk 0:00:02]} 33. Rf1 {[%clk 0:00:28]}  Nxe5 {[%clk 0:00:02]} 34. Ng4 {[%clk 0:00:25]}  Qxd3 {[%clk 0:00:02]} 35. Nxe5 {[%clk 0:00:14]}  Qxf5 {[%clk 0:00:02]} 36. Rxf5 {[%clk 0:00:14]}  g6 {[%clk 0:00:02]} 37. Nxc6 {[%clk 0:00:12]}  gxf5 {[%clk 0:00:02]} 38. Nxe7+ {[%clk 0:00:11]}  Bxe7 {[%clk 0:00:03]} 39. Nxf5 {[%clk 0:00:12]}  Bg5 {[%clk 0:00:03]} 40. Bf3 {[%clk 0:00:09]}  Bc1 {[%clk 0:00:03]} 41. a4 {[%clk 0:00:08]}  Kh7 {[%clk 0:00:02]} 42. Be4 {[%clk 0:00:08]}  Kg8 {[%clk 0:00:01]} 43. Kf1 {[%clk 0:00:08]}  Ne6 {[%clk 0:00:01]} 44. g3 {[%clk 0:00:06]}  Ng5 {[%clk 0:00:01]} 45. Bg2 {[%clk 0:00:06]}  h5 {[%clk 0:00:01]} 46. h4 {[%clk 0:00:06]}  Ne6 {[%clk 0:00:01]} 47. Bd5 {[%clk 0:00:06]}  Nd8 {[%clk 0:00:01]} 48. Ne7+ {[%clk 0:00:04]}  Kf8 {[%clk 0:00:01]} 49. Nf5 {[%clk 0:00:05]}  Ne6 {[%clk 0:00:01]} 50. Nd6 {[%clk 0:00:05]}  Ke7 {[%clk 0:00:02]} 51. Nb7 {[%clk 0:00:05]}  a5 {[%clk 0:00:01]} 52. Bxe6 {[%clk 0:00:05]}  Kxe6 {[%clk 0:00:02]} 53. Nxc5+ {[%clk 0:00:06]}  Kf5 {[%clk 0:00:02]} 54. Nd3 {[%clk 0:00:07]}  Be3 {[%clk 0:00:02]} 55. Ke2 {[%clk 0:00:06]}  Kg4 {[%clk 0:00:02]} 56. Bb2 {[%clk 0:00:06]}  Kxg3 {[%clk 0:00:03]} 57. c5 {[%clk 0:00:07]}  Kxh4 {[%clk 0:00:02]} 58. c6 {[%clk 0:00:07]}  Bf4 {[%clk 0:00:02]} 59. Nxf4 {[%clk 0:00:07]}  Kg4 {[%clk 0:00:02]} 60. Nd3 {[%clk 0:00:07]}  Kf5 {[%clk 0:00:02]} 61. c7 {[%clk 0:00:07]}  Ke4 {[%clk 0:00:03]} 62. c8=Q {[%clk 0:00:08]}  f6 {[%clk 0:00:01]} 63. Qc6+ {[%clk 0:00:09]} 1-0


[Site "https://www.chess.com"]

[Event "Titled Tuesday Blitz November 14 Early 2023"]
[White "Nazari, Arad"]
[Black "whiteglovethief"]
[WhiteFideId "12577324"]
[WhiteElo "2748"]
[BlackElo "2447"]
[Result "1-0"]
[Round "2"]
[TimeControl "180+1"]
[Date "2023.11.14"]
[WhiteClock "0:00:59"]
[BlackClock "0:00:33"]
[Board "88"]

1. e4 {[%clk 0:03:00]}  e6 {[%clk 0:02:58]} 2. d4 {[%clk 0:03:00]}  d5 {[%clk 0:02:58]} 3. Nd2 {[%clk 0:03:00]}  c5 {[%clk 0:02:58]} 4. Ngf3 {[%clk 0:03:00]}  dxe4 {[%clk 0:02:56]} 5. Nxe4 {[%clk 0:02:59]}  cxd4 {[%clk 0:02:47]} 6. Nxd4 {[%clk 0:02:54]}  Nf6 {[%clk 0:02:45]} 7. Nxf6+ {[%clk 0:02:47]}  Qxf6 {[%clk 0:02:43]} 8. Bb5+ {[%clk 0:02:44]}  Bd7 {[%clk 0:02:43]} 9. O-O {[%clk 0:02:44]}  Bc5 {[%clk 0:02:41]} 10. Bxd7+ {[%clk 0:02:38]}  Nxd7 {[%clk 0:02:42]} 11. Nb3 {[%clk 0:02:38]}  O-O {[%clk 0:02:35]} 12. Qxd7 {[%clk 0:02:36]}  Rad8 {[%clk 0:02:21]} 13. Qb5 {[%clk 0:02:37]}  Bxf2+ {[%clk 0:02:08]} 14. Kh1 {[%clk 0:02:37]}  Rd5 {[%clk 0:01:44]} 15. Qe2 {[%clk 0:02:30]}  Re5 {[%clk 0:01:43]} 16. Be3 {[%clk 0:02:03]}  Bxe3 {[%clk 0:01:27]} 17. Rxf6 {[%clk 0:02:01]}  gxf6 {[%clk 0:01:28]} 18. Rf1 {[%clk 0:02:00]}  Rd8 {[%clk 0:01:20]} 19. g3 {[%clk 0:01:49]}  Bg5 {[%clk 0:01:13]} 20. Qg4 {[%clk 0:01:40]}  Kf8 {[%clk 0:01:10]} 21. h4 {[%clk 0:01:35]}  Bh6 {[%clk 0:01:06]} 22. Rxf6 {[%clk 0:01:29]}  Bg7 {[%clk 0:01:06]} 23. Rf1 {[%clk 0:01:26]}  h5 {[%clk 0:01:03]} 24. Qf3 {[%clk 0:01:18]}  Rf5 {[%clk 0:01:02]} 25. Qe2 {[%clk 0:01:18]}  Re5 {[%clk 0:00:54]} 26. Qc4 {[%clk 0:01:13]}  a5 {[%clk 0:00:52]} 27. Nc5 {[%clk 0:01:03]}  Rd2 {[%clk 0:00:33]} 28. Nxe6+ {[%clk 0:00:59]} 1-0


[Site "https://www.chess.com"]

[Event "Titled Tuesday Blitz November 14 Early 2023"]
[White "Jumanov, Elbek"]
[Black "Samunenkov, Ihor"]
[WhiteFideId "14202905"]
[BlackFideId "14187086"]
[WhiteElo "2442"]
[BlackElo "2748"]
[Result "0-1"]
[Round "2"]
[TimeControl "180+1"]
[Date "2023.11.14"]
[WhiteClock "0:00:00"]
[BlackClock "0:00:04"]
[Board "89"]

1. c4 {[%clk 0:03:00]}  c5 {[%clk 0:02:58]} 2. g3 {[%clk 0:03:00]}  Nc6 {[%clk 0:02:57]} 3. Bg2 {[%clk 0:03:01]}  g6 {[%clk 0:02:58]} 4. Nc3 {[%clk 0:03:02]}  Bg7 {[%clk 0:02:58]} 5. Nf3 {[%clk 0:03:02]}  d6 {[%clk 0:02:57]} 6. O-O {[%clk 0:03:01]}  Rb8 {[%clk 0:02:55]} 7. a3 {[%clk 0:02:59]}  Be6 {[%clk 0:02:34]} 8. d3 {[%clk 0:02:56]}  a6 {[%clk 0:02:34]} 9. Rb1 {[%clk 0:02:06]}  b5 {[%clk 0:02:33]} 10. Nd2 {[%clk 0:02:06]}  Bd7 {[%clk 0:02:29]} 11. Nd5 {[%clk 0:01:48]}  e6 {[%clk 0:02:22]} 12. Ne3 {[%clk 0:01:48]}  Nge7 {[%clk 0:02:21]} 13. b4 {[%clk 0:01:39]}  cxb4 {[%clk 0:02:12]} 14. axb4 {[%clk 0:01:39]}  O-O {[%clk 0:02:11]} 15. Bb2 {[%clk 0:01:31]}  Bxb2 {[%clk 0:01:49]} 16. Rxb2 {[%clk 0:01:31]}  bxc4 {[%clk 0:01:50]} 17. Nexc4 {[%clk 0:01:08]}  d5 {[%clk 0:01:50]} 18. Na3 {[%clk 0:01:06]}  Nxb4 {[%clk 0:01:44]} 19. Qa1 {[%clk 0:00:58]}  a5 {[%clk 0:01:43]} 20. Nf3 {[%clk 0:00:54]}  Nec6 {[%clk 0:01:43]} 21. h4 {[%clk 0:00:50]}  Qf6 {[%clk 0:01:41]} 22. Rfb1 {[%clk 0:00:46]}  Rb6 {[%clk 0:01:31]} 23. Nc2 {[%clk 0:00:41]}  Nxc2 {[%clk 0:01:14]} 24. Rxc2 {[%clk 0:00:42]}  Qxa1 {[%clk 0:01:15]} 25. Rxa1 {[%clk 0:00:42]}  Ra8 {[%clk 0:01:15]} 26. Nd2 {[%clk 0:00:39]}  a4 {[%clk 0:01:09]} 27. Rca2 {[%clk 0:00:35]}  Nb4 {[%clk 0:01:09]} 28. Rb2 {[%clk 0:00:34]}  a3 {[%clk 0:01:04]} 29. Rb3 {[%clk 0:00:34]}  a2 {[%clk 0:00:58]} 30. Rb2 {[%clk 0:00:34]}  Rab8 {[%clk 0:00:39]} 31. Kh2 {[%clk 0:00:28]}  Ba4 {[%clk 0:00:34]} 32. Bf1 {[%clk 0:00:23]}  Nxd3 {[%clk 0:00:07]} 33. Rxb6 {[%clk 0:00:21]}  Rxb6 {[%clk 0:00:08]} 34. Rxa2 {[%clk 0:00:21]}  Nc5 {[%clk 0:00:08]} 35. e3 {[%clk 0:00:19]}  Kg7 {[%clk 0:00:07]} 36. Nf3 {[%clk 0:00:19]}  Rb1 {[%clk 0:00:05]} 37. Be2 {[%clk 0:00:18]}  Bb5 {[%clk 0:00:04]} 38. Bxb5 {[%clk 0:00:15]}  Rxb5 {[%clk 0:00:05]} 39. Nd4 {[%clk 0:00:16]}  Rb7 {[%clk 0:00:05]} 40. Kg2 {[%clk 0:00:15]}  Ne4 {[%clk 0:00:05]} 41. Rc2 {[%clk 0:00:14]}  h5 {[%clk 0:00:05]} 42. Ra2 {[%clk 0:00:14]}  Rc7 {[%clk 0:00:05]} 43. Rb2 {[%clk 0:00:14]}  Nf6 {[%clk 0:00:05]} 44. Ra2 {[%clk 0:00:14]}  Ng4 {[%clk 0:00:06]} 45. Rb2 {[%clk 0:00:14]}  e5 {[%clk 0:00:06]} 46. Nf3 {[%clk 0:00:14]}  Rd7 {[%clk 0:00:06]} 47. Rd2 {[%clk 0:00:13]}  Kf6 {[%clk 0:00:06]} 48. Ng5 {[%clk 0:00:13]}  Ke7 {[%clk 0:00:04]} 49. Nf3 {[%clk 0:00:13]}  f6 {[%clk 0:00:04]} 50. Ra2 {[%clk 0:00:11]}  Ke6 {[%clk 0:00:04]} 51. Ra6+ {[%clk 0:00:11]}  Kf5 {[%clk 0:00:05]} 52. Nd2 {[%clk 0:00:10]}  Rb7 {[%clk 0:00:03]} 53. Ra2 {[%clk 0:00:08]}  Rb4 {[%clk 0:00:02]} 54. Nf3 {[%clk 0:00:07]}  Rb6 {[%clk 0:00:01]} 55. Ne1 {[%clk 0:00:07]}  Rd6 {[%clk 0:00:01]} 56. Nf3 {[%clk 0:00:07]}  Rd8 {[%clk 0:00:01]} 57. Rd2 {[%clk 0:00:05]}  Rd7 {[%clk 0:00:02]} 58. e4+ {[%clk 0:00:04]}  Ke6 {[%clk 0:00:03]} 59. exd5+ {[%clk 0:00:04]}  Rxd5 {[%clk 0:00:03]} 60. Rxd5 {[%clk 0:00:00]}  Kxd5 {[%clk 0:00:04]} 0-1


[Site "https://www.chess.com"]